[Event "Early-Titled-Tuesday-Blitz-April-16-2024"]
[Site "Chess.com"]
[Date "2024.04.16"]
[Round "8"]
[White "lrjchess"]
[Black "LikeWater"]
[Result "1-0"]
[WhiteElo "2487"]
[BlackElo "2573"]
[TimeControl "180+1"]
[EndTime "9:30:28 PDT"]
[Termination "lrjchess won by resignation"]

1. e4 {[%clk 0:03:00.9]} 1... e6 {[%clk 0:02:56.4]} 2. d4 {[%clk 0:03:00.3]}
2... d5 {[%clk 0:02:56.7]} 3. Nc3 {[%clk 0:03:00.7]} 3... dxe4 {[%clk
0:02:56.5]} 4. Nxe4 {[%clk 0:03:00.5]} 4... Bd7 {[%clk 0:02:57.4]} 5. Nf3 {[%clk
0:02:59.8]} 5... Bc6 {[%clk 0:02:57.3]} 6. Bd3 {[%clk 0:02:57.6]} 6... Nd7
{[%clk 0:02:56.7]} 7. O-O {[%clk 0:02:56.5]} 7... Ngf6 {[%clk 0:02:57]} 8. Ng3
{[%clk 0:02:56.4]} 8... g6 {[%clk 0:02:56.9]} 9. c4 {[%clk 0:02:56.1]} 9... Bg7
{[%clk 0:02:56.8]} 10. b3 {[%clk 0:02:55.4]} 10... O-O {[%clk 0:02:56.6]} 11.
Bb2 {[%clk 0:02:55.7]} 11... a5 {[%clk 0:02:56.2]} 12. a3 {[%clk 0:02:55.1]}
12... b6 {[%clk 0:02:50.3]} 13. Qe2 {[%clk 0:02:52.4]} 13... Qb8 {[%clk
0:02:43.5]} 14. h4 {[%clk 0:02:40]} 14... Qb7 {[%clk 0:02:42.8]} 15. Ne1 {[%clk
0:02:33.1]} 15... a4 {[%clk 0:02:05.5]} 16. b4 {[%clk 0:02:32.4]} 16... b5
{[%clk 0:02:05]} 17. cxb5 {[%clk 0:02:31.9]} 17... Bd5 {[%clk 0:02:05.5]} 18. h5
{[%clk 0:02:27.3]} 18... Rfe8 {[%clk 0:02:05.1]} 19. hxg6 {[%clk 0:02:23.9]}
19... hxg6 {[%clk 0:02:06]} 20. f4 {[%clk 0:02:08.9]} 20... Nb6 {[%clk
0:01:46.3]} 21. Nc2 {[%clk 0:02:02.7]} 21... Rad8 {[%clk 0:01:44.7]} 22. Ne3
{[%clk 0:02:02.7]} 22... Be4 {[%clk 0:01:39.3]} 23. Nxe4 {[%clk 0:01:57.1]}
23... Nxe4 {[%clk 0:01:40.2]} 24. Qf3 {[%clk 0:01:57.1]} 24... f5 {[%clk
0:01:40.5]} 25. Rac1 {[%clk 0:01:52]} 25... Bxd4 {[%clk 0:01:38.2]} 26. Bxe4
{[%clk 0:01:25.9]} 26... fxe4 {[%clk 0:01:29.1]} 27. Qg3 {[%clk 0:01:26]} 27...
Bxb2 {[%clk 0:01:29.4]} 28. Qxg6+ {[%clk 0:01:25.8]} 28... Bg7 {[%clk
0:01:29.7]} 29. f5 {[%clk 0:01:26.1]} 29... Rf8 {[%clk 0:00:41.2]} 30. f6 {[%clk
0:00:56.4]} 30... Rxf6 {[%clk 0:00:40.9]} 31. Rxf6 {[%clk 0:00:55.2]} 31... c5
{[%clk 0:00:41.6]} 32. bxc6 {[%clk 0:00:51.7]} 32... Qe7 {[%clk 0:00:40.9]} 33.
Rxe6 {[%clk 0:00:49.7]} 33... Qa7 {[%clk 0:00:40.5]} 34. c7 {[%clk 0:00:46.5]}
1-0

[Event "Early-Titled-Tuesday-Blitz-April-16-2024"]
[Site "Chess.com"]
[Date "2024.04.16"]
[Round "8"]
[White "santosalberto1987"]
[Black "azikom"]
[Result "0-1"]
[WhiteElo "2573"]
[BlackElo "2713"]
[TimeControl "180+1"]
[EndTime "9:30:30 PDT"]
[Termination "azikom won by resignation"]

1. e4 {[%clk 0:03:00.9]} 1... c6 {[%clk 0:02:59.3]} 2. c4 {[%clk 0:03:00.4]}
2... d5 {[%clk 0:03:00.2]} 3. exd5 {[%clk 0:03:01.2]} 3... cxd5 {[%clk
0:03:00.5]} 4. cxd5 {[%clk 0:03:02.1]} 4... Nf6 {[%clk 0:03:00.8]} 5. Qa4+
{[%clk 0:03:02.1]} 5... Nbd7 {[%clk 0:03:00.6]} 6. Bc4 {[%clk 0:03:02.4]} 6...
g6 {[%clk 0:03:00.5]} 7. Nc3 {[%clk 0:03:02.7]} 7... Bg7 {[%clk 0:03:01.2]} 8.
Nf3 {[%clk 0:03:02.2]} 8... O-O {[%clk 0:03:02.1]} 9. d3 {[%clk 0:03:02.1]} 9...
a6 {[%clk 0:02:59.1]} 10. Qa3 {[%clk 0:03:02]} 10... b6 {[%clk 0:02:52.2]} 11.
O-O {[%clk 0:03:01.6]} 11... Bb7 {[%clk 0:02:52.6]} 12. Re1 {[%clk 0:03:01.7]}
12... Re8 {[%clk 0:02:52]} 13. h3 {[%clk 0:03:00.4]} 13... b5 {[%clk 0:02:51]}
14. Bb3 {[%clk 0:03:00.5]} 14... Nb6 {[%clk 0:02:49.1]} 15. d6 {[%clk
0:03:00.3]} 15... Bxf3 {[%clk 0:02:45.1]} 16. gxf3 {[%clk 0:02:59.4]} 16... exd6
{[%clk 0:02:43.3]} 17. Rxe8+ {[%clk 0:02:50.7]} 17... Nxe8 {[%clk 0:02:42.8]}
18. Be3 {[%clk 0:02:45.1]} 18... Nd7 {[%clk 0:01:25.6]} 19. Bd5 {[%clk 0:02:34]}
19... Rb8 {[%clk 0:01:24.9]} 20. Qxa6 {[%clk 0:02:30.4]} 20... Nc5 {[%clk
0:01:22.6]} 21. Qa7 {[%clk 0:02:21.6]} 21... Nc7 {[%clk 0:01:22.1]} 22. d4
{[%clk 0:01:59.7]} 22... Nd3 {[%clk 0:01:18.9]} 23. Bb3 {[%clk 0:01:36.2]} 23...
Nxb2 {[%clk 0:01:06.6]} 24. Nd5 {[%clk 0:01:34.9]} 24... Ne6 {[%clk 0:01:00.4]}
25. Rc1 {[%clk 0:01:25.4]} 25... Ra8 {[%clk 0:00:55.1]} 26. Qb7 {[%clk
0:01:21.1]} 26... Nc4 {[%clk 0:00:49.4]} 27. Qxb5 {[%clk 0:01:14.2]} 27... Nxe3
{[%clk 0:00:48.8]} 28. fxe3 {[%clk 0:01:09]} 28... Nxd4 {[%clk 0:00:45.9]} 29.
exd4 {[%clk 0:01:06.7]} 29... Qg5+ {[%clk 0:00:45.4]} 30. Kh2 {[%clk 0:00:56.7]}
30... Qxc1 {[%clk 0:00:46.3]} 31. Qb7 {[%clk 0:00:51.9]} 31... Rf8 {[%clk
0:00:46]} 32. Ne7+ {[%clk 0:00:48.9]} 32... Kh8 {[%clk 0:00:45.4]} 33. Qd5
{[%clk 0:00:49.3]} 33... Qf4+ {[%clk 0:00:43.4]} 34. Kh1 {[%clk 0:00:47.1]}
34... Bxd4 {[%clk 0:00:38.1]} 35. Nc6 {[%clk 0:00:43.9]} 35... Qc1+ {[%clk
0:00:36.2]} 0-1

[Event "Early-Titled-Tuesday-Blitz-April-16-2024"]
[Site "Chess.com"]
[Date "2024.04.16"]
[Round "8"]
[White "LeninGuerra"]
[Black "schachlana"]
[Result "1-0"]
[WhiteElo "2763"]
[BlackElo "2336"]
[TimeControl "180+1"]
[EndTime "9:30:32 PDT"]
[Termination "LeninGuerra won by checkmate"]

1. e4 {[%clk 0:01:44.4]} 1... c5 {[%clk 0:02:57.1]} 2. Nf3 {[%clk 0:01:43.6]}
2... e6 {[%clk 0:02:57.6]} 3. b4 {[%clk 0:01:43.6]} 3... cxb4 {[%clk 0:02:57.6]}
4. a3 {[%clk 0:01:44.2]} 4... bxa3 {[%clk 0:02:57.7]} 5. Bxa3 {[%clk 0:01:45.1]}
5... Bxa3 {[%clk 0:02:53]} 6. Nxa3 {[%clk 0:01:44.8]} 6... Ne7 {[%clk
0:02:53.6]} 7. Bd3 {[%clk 0:01:44.6]} 7... O-O {[%clk 0:02:53.3]} 8. O-O {[%clk
0:01:44.9]} 8... d5 {[%clk 0:02:51.2]} 9. e5 {[%clk 0:01:44.8]} 9... Ng6 {[%clk
0:02:44.8]} 10. h4 {[%clk 0:01:43.3]} 10... Nxh4 {[%clk 0:02:37.5]} 11. Nxh4
{[%clk 0:01:40.4]} 11... Qxh4 {[%clk 0:02:38.4]} 12. Nb5 {[%clk 0:01:40.5]}
12... Nc6 {[%clk 0:02:33.7]} 13. g3 {[%clk 0:01:40.2]} 13... Qe7 {[%clk
0:02:31]} 14. Kg2 {[%clk 0:01:23]} 14... Nxe5 {[%clk 0:02:28.1]} 15. Bxh7+
{[%clk 0:01:22.8]} 15... Kxh7 {[%clk 0:02:18.2]} 16. Qh5+ {[%clk 0:01:23.2]}
16... Kg8 {[%clk 0:02:18.3]} 17. Qxe5 {[%clk 0:01:23.2]} 17... Bd7 {[%clk
0:01:51.4]} 18. Nd4 {[%clk 0:00:58.7]} 18... f6 {[%clk 0:01:40.7]} 19. Qc7
{[%clk 0:00:58]} 19... Rfc8 {[%clk 0:01:19.1]} 20. Qxb7 {[%clk 0:00:55.5]} 20...
Qd6 {[%clk 0:01:06.8]} 21. Ra6 {[%clk 0:00:51.8]} 21... Qc7 {[%clk 0:00:58.9]}
22. Rb1 {[%clk 0:00:42.7]} 22... Kh8 {[%clk 0:00:15.8]} 23. c3 {[%clk
0:00:33.8]} 23... e5 {[%clk 0:00:14.9]} 24. Rh1+ {[%clk 0:00:32.5]} 24... Kg8
{[%clk 0:00:15]} 25. Qxd5+ {[%clk 0:00:32.6]} 25... Kf8 {[%clk 0:00:13.9]} 26.
Rh8+ {[%clk 0:00:32.4]} 26... Ke7 {[%clk 0:00:14.3]} 27. Re6+ {[%clk 0:00:32.7]}
27... Bxe6 {[%clk 0:00:12.4]} 28. Qxe6# {[%clk 0:00:33.6]} 1-0

[Event "Early-Titled-Tuesday-Blitz-April-16-2024"]
[Site "Chess.com"]
[Date "2024.04.16"]
[Round "8"]
[White "Hui_Li_Macau"]
[Black "WilsonPalencia21"]
[Result "0-1"]
[WhiteElo "2399"]
[BlackElo "2585"]
[TimeControl "180+1"]
[EndTime "9:30:38 PDT"]
[Termination "WilsonPalencia21 won by checkmate"]

1. e4 {[%clk 0:03:00.9]} 1... c5 {[%clk 0:02:56.6]} 2. Nf3 {[%clk 0:03:00.8]}
2... d6 {[%clk 0:02:56.8]} 3. d4 {[%clk 0:03:01.1]} 3... cxd4 {[%clk 0:02:57.4]}
4. Nxd4 {[%clk 0:03:02]} 4... Nf6 {[%clk 0:02:58]} 5. Nc3 {[%clk 0:03:01.9]}
5... g6 {[%clk 0:02:58.6]} 6. Be3 {[%clk 0:03:01.4]} 6... Bg7 {[%clk 0:02:59.2]}
7. f3 {[%clk 0:03:01.7]} 7... O-O {[%clk 0:03:00.1]} 8. Qd2 {[%clk 0:03:01.9]}
8... Nc6 {[%clk 0:03:01]} 9. O-O-O {[%clk 0:03:02.2]} 9... Nxd4 {[%clk
0:03:01.6]} 10. Bxd4 {[%clk 0:03:01.6]} 10... Be6 {[%clk 0:03:02.5]} 11. Kb1
{[%clk 0:02:59.9]} 11... Qc7 {[%clk 0:03:01.9]} 12. g4 {[%clk 0:02:58]} 12...
Rfc8 {[%clk 0:03:01.4]} 13. h4 {[%clk 0:02:56.5]} 13... Qa5 {[%clk 0:03:00.8]}
14. a3 {[%clk 0:02:54.4]} 14... Rab8 {[%clk 0:03:00.5]} 15. h5 {[%clk
0:02:50.4]} 15... b5 {[%clk 0:02:59.6]} 16. Nd5 {[%clk 0:02:41.9]} 16... Qxd2
{[%clk 0:02:58.7]} 17. Rxd2 {[%clk 0:02:41.1]} 17... Nxd5 {[%clk 0:02:56.9]} 18.
Bxg7 {[%clk 0:02:39]} 18... Ne3 {[%clk 0:02:41.9]} 19. Bc3 {[%clk 0:02:15.5]}
19... Nxf1 {[%clk 0:02:25.2]} 20. Rxf1 {[%clk 0:02:16.4]} 20... g5 {[%clk
0:02:23.9]} 21. h6 {[%clk 0:01:58.2]} 21... f6 {[%clk 0:02:22.2]} 22. f4 {[%clk
0:01:45.1]} 22... Rc4 {[%clk 0:02:02.7]} 23. f5 {[%clk 0:01:22.8]} 23... Bc8
{[%clk 0:01:56.5]} 24. e5 {[%clk 0:01:06]} 24... fxe5 {[%clk 0:01:38.9]} 25. f6
{[%clk 0:01:05.3]} 25... Kf7 {[%clk 0:01:27.7]} 26. fxe7+ {[%clk 0:00:47.8]}
26... Kxe7 {[%clk 0:01:27.7]} 27. Bb4 {[%clk 0:00:25.7]} 27... Rb6 {[%clk
0:01:23.5]} 28. Rfd1 {[%clk 0:00:20.9]} 28... Bxg4 {[%clk 0:01:15]} 29. Rxd6
{[%clk 0:00:12.6]} 29... Rxb4 {[%clk 0:01:05.2]} 30. Rxb6 {[%clk 0:00:07.2]}
30... axb6 {[%clk 0:01:04]} 31. Rd5 {[%clk 0:00:04.2]} 31... Re4 {[%clk
0:00:55.1]} 32. Rxb5 {[%clk 0:00:03.9]} 32... Be6 {[%clk 0:00:55.4]} 33. Rxb6
{[%clk 0:00:03.5]} 33... Re1# {[%clk 0:00:54.9]} 0-1

[Event "Early-Titled-Tuesday-Blitz-April-16-2024"]
[Site "Chess.com"]
[Date "2024.04.16"]
[Round "8"]
[White "Jospem"]
[Black "Nitzan_Steinberg"]
[Result "1/2-1/2"]
[WhiteElo "3061"]
[BlackElo "2904"]
[TimeControl "180+1"]
[EndTime "9:30:39 PDT"]
[Termination "Game drawn by repetition"]

1. e4 {[%clk 0:03:00.9]} 1... c5 {[%clk 0:02:54.8]} 2. Nf3 {[%clk 0:02:53.1]}
2... d6 {[%clk 0:02:55.2]} 3. c3 {[%clk 0:02:52.9]} 3... Nf6 {[%clk 0:02:55.3]}
4. h3 {[%clk 0:02:53.6]} 4... g6 {[%clk 0:02:54.9]} 5. Bd3 {[%clk 0:02:54.1]}
5... Bg7 {[%clk 0:02:55.2]} 6. Bc2 {[%clk 0:02:54.8]} 6... O-O {[%clk 0:02:55]}
7. O-O {[%clk 0:02:55.4]} 7... b5 {[%clk 0:02:52.8]} 8. d4 {[%clk 0:02:55.2]}
8... Bb7 {[%clk 0:02:53.2]} 9. Re1 {[%clk 0:02:54.3]} 9... Nc6 {[%clk 0:02:48]}
10. Nbd2 {[%clk 0:02:52.1]} 10... cxd4 {[%clk 0:02:44.9]} 11. cxd4 {[%clk
0:02:53]} 11... Rc8 {[%clk 0:02:38.9]} 12. a3 {[%clk 0:02:47.7]} 12... Qb6
{[%clk 0:02:27.8]} 13. Nb3 {[%clk 0:02:42.3]} 13... Na5 {[%clk 0:02:13.3]} 14.
Nbd2 {[%clk 0:02:33.3]} 14... Rfd8 {[%clk 0:01:51.7]} 15. Bd3 {[%clk 0:02:24.6]}
15... a6 {[%clk 0:00:58.8]} 16. Nf1 {[%clk 0:02:03.6]} 16... d5 {[%clk
0:00:55.6]} 17. e5 {[%clk 0:02:04]} 17... Ne4 {[%clk 0:00:55.9]} 18. Ne3 {[%clk
0:01:45.5]} 18... Nc4 {[%clk 0:00:51.6]} 19. Qe2 {[%clk 0:01:44.1]} 19... f6
{[%clk 0:00:46.5]} 20. Ng4 {[%clk 0:01:24]} 20... h5 {[%clk 0:00:37.4]} 21. Nh6+
{[%clk 0:00:50.6]} 21... Kh7 {[%clk 0:00:37.1]} 22. Nf7 {[%clk 0:00:51.3]} 22...
Rf8 {[%clk 0:00:32.7]} 23. e6 {[%clk 0:00:51.8]} 23... Kg8 {[%clk 0:00:25.1]}
24. Nh6+ {[%clk 0:00:50]} 24... Kh7 {[%clk 0:00:23.6]} 25. Nf7 {[%clk
0:00:50.4]} 25... Kg8 {[%clk 0:00:23.9]} 26. Nh6+ {[%clk 0:00:15.3]} 26... Kh7
{[%clk 0:00:24]} 27. Nf7 {[%clk 0:00:16]} 1/2-1/2

[Event "Early-Titled-Tuesday-Blitz-April-16-2024"]
[Site "Chess.com"]
[Date "2024.04.16"]
[Round "8"]
[White "Ariadna_Atreides"]
[Black "esrosenberg"]
[Result "1-0"]
[WhiteElo "2216"]
[BlackElo "2370"]
[TimeControl "180+1"]
[EndTime "9:30:39 PDT"]
[Termination "Ariadna_Atreides won by resignation"]

1. d4 {[%clk 0:02:59.2]} 1... d5 {[%clk 0:02:59.4]} 2. Nf3 {[%clk 0:02:59]} 2...
Bf5 {[%clk 0:02:57.3]} 3. Bf4 {[%clk 0:02:55.5]} 3... e6 {[%clk 0:02:57.1]} 4.
e3 {[%clk 0:02:55.8]} 4... Bd6 {[%clk 0:02:57.1]} 5. Bd3 {[%clk 0:02:54.3]} 5...
Ne7 {[%clk 0:02:56.9]} 6. O-O {[%clk 0:02:46.2]} 6... Nd7 {[%clk 0:02:53.2]} 7.
Bxd6 {[%clk 0:02:42.8]} 7... cxd6 {[%clk 0:02:52.4]} 8. c4 {[%clk 0:02:42.8]}
8... dxc4 {[%clk 0:02:31.6]} 9. Bxc4 {[%clk 0:02:42.3]} 9... d5 {[%clk 0:02:28]}
10. Bd3 {[%clk 0:02:39.3]} 10... O-O {[%clk 0:02:25.4]} 11. Nc3 {[%clk
0:02:33.8]} 11... a6 {[%clk 0:02:17.7]} 12. a3 {[%clk 0:02:32.7]} 12... b5
{[%clk 0:02:15.9]} 13. Rc1 {[%clk 0:02:30.9]} 13... Rb8 {[%clk 0:02:05.3]} 14.
Bxf5 {[%clk 0:02:24.8]} 14... Nxf5 {[%clk 0:02:04.5]} 15. Qd3 {[%clk 0:02:10.9]}
15... Nd6 {[%clk 0:02:04.2]} 16. Rc2 {[%clk 0:01:52.9]} 16... Nc4 {[%clk
0:01:56.9]} 17. Rd1 {[%clk 0:01:29.8]} 17... f5 {[%clk 0:01:55.4]} 18. g3 {[%clk
0:01:27.4]} 18... f4 {[%clk 0:01:52.6]} 19. gxf4 {[%clk 0:01:21.1]} 19... Rf6
{[%clk 0:01:47.3]} 20. Ne5 {[%clk 0:01:12.5]} 20... Ndxe5 {[%clk 0:01:44.1]} 21.
fxe5 {[%clk 0:01:07.8]} 21... Rg6+ {[%clk 0:01:43.8]} 22. Kh1 {[%clk 0:00:59.8]}
22... Qg5 {[%clk 0:01:40.2]} 23. f4 {[%clk 0:00:52.2]} 23... Qg4 {[%clk
0:01:38]} 24. Rf1 {[%clk 0:00:41.2]} 24... Rf8 {[%clk 0:01:25.9]} 25. Nd1 {[%clk
0:00:40.2]} 25... Rf5 {[%clk 0:01:18.4]} 26. Qe2 {[%clk 0:00:39.1]} 26... Qh3
{[%clk 0:01:10.8]} 27. Qf3 {[%clk 0:00:34.6]} 27... Qh4 {[%clk 0:01:01.5]} 28.
b3 {[%clk 0:00:28.6]} 28... Nxa3 {[%clk 0:00:55.9]} 29. Rc8+ {[%clk 0:00:28.4]}
29... Rf8 {[%clk 0:00:52.3]} 30. Rxf8+ {[%clk 0:00:27.5]} 30... Kxf8 {[%clk
0:00:53.2]} 31. f5 {[%clk 0:00:26.1]} 31... Rh6 {[%clk 0:00:32]} 32. fxe6+
{[%clk 0:00:24.9]} 1-0

[Event "Early-Titled-Tuesday-Blitz-April-16-2024"]
[Site "Chess.com"]
[Date "2024.04.16"]
[Round "8"]
[White "RantomOpening"]
[Black "kekic76"]
[Result "1-0"]
[WhiteElo "2521"]
[BlackElo "2343"]
[TimeControl "180+1"]
[EndTime "9:30:42 PDT"]
[Termination "RantomOpening won by checkmate"]

1. d4 {[%clk 0:03:00.9]} 1... d5 {[%clk 0:02:53.4]} 2. c4 {[%clk 0:03:01.8]}
2... e6 {[%clk 0:02:52.3]} 3. Nc3 {[%clk 0:02:59.5]} 3... Nf6 {[%clk 0:02:52.5]}
4. Bg5 {[%clk 0:02:58.7]} 4... Be7 {[%clk 0:02:52.2]} 5. Bxf6 {[%clk 0:02:57.6]}
5... Bxf6 {[%clk 0:02:52.2]} 6. e3 {[%clk 0:02:58.1]} 6... O-O {[%clk
0:02:51.9]} 7. Nf3 {[%clk 0:02:58.4]} 7... b6 {[%clk 0:02:52]} 8. cxd5 {[%clk
0:02:57.5]} 8... exd5 {[%clk 0:02:51.2]} 9. Bd3 {[%clk 0:02:58]} 9... Be6 {[%clk
0:02:50.5]} 10. h4 {[%clk 0:02:57.9]} 10... h6 {[%clk 0:02:47.4]} 11. Qc2 {[%clk
0:02:55.5]} 11... c5 {[%clk 0:02:41.4]} 12. O-O-O {[%clk 0:02:54.4]} 12... cxd4
{[%clk 0:02:40.3]} 13. Nxd4 {[%clk 0:02:52.2]} 13... Bxd4 {[%clk 0:02:39.6]} 14.
exd4 {[%clk 0:02:53.1]} 14... Nc6 {[%clk 0:02:40.2]} 15. Bh7+ {[%clk 0:02:51]}
15... Kh8 {[%clk 0:02:40]} 16. Bf5 {[%clk 0:02:50.6]} 16... Nb4 {[%clk
0:02:27.1]} 17. Qb1 {[%clk 0:02:48.7]} 17... Rc8 {[%clk 0:02:24.8]} 18. Bxe6
{[%clk 0:02:40.6]} 18... fxe6 {[%clk 0:02:25.7]} 19. a3 {[%clk 0:02:40.5]} 19...
Nc6 {[%clk 0:02:06.4]} 20. Qc2 {[%clk 0:02:36.9]} 20... Qf6 {[%clk 0:02:00.6]}
21. Rhf1 {[%clk 0:02:07]} 21... Nxd4 {[%clk 0:01:56.9]} 22. Qd3 {[%clk
0:02:03.7]} 22... Nb3+ {[%clk 0:01:33]} 23. Kb1 {[%clk 0:02:00.9]} 23... Qf5
{[%clk 0:01:22.4]} 24. Qxf5 {[%clk 0:01:56.1]} 24... Rxf5 {[%clk 0:01:23]} 25.
f3 {[%clk 0:01:56.6]} 25... a6 {[%clk 0:00:56.3]} 26. Rfe1 {[%clk 0:01:53.9]}
26... Nc5 {[%clk 0:00:47.9]} 27. b4 {[%clk 0:01:51]} 27... Nd7 {[%clk
0:00:42.9]} 28. Kb2 {[%clk 0:01:51.3]} 28... Nf8 {[%clk 0:00:36.5]} 29. Na4
{[%clk 0:01:47.7]} 29... Rc6 {[%clk 0:00:16.1]} 30. Rc1 {[%clk 0:01:44.8]} 30...
Rd6 {[%clk 0:00:16.4]} 31. Rc8 {[%clk 0:01:42.6]} 31... d4 {[%clk 0:00:15.6]}
32. Kc2 {[%clk 0:01:36.9]} 32... Kh7 {[%clk 0:00:15.2]} 33. Kd3 {[%clk
0:01:36.2]} 33... Rh5 {[%clk 0:00:12.9]} 34. Rxf8 {[%clk 0:01:34.3]} 34... Rxh4
{[%clk 0:00:12.6]} 35. Re4 {[%clk 0:01:31.3]} 35... Rh2 {[%clk 0:00:12.4]} 36.
Rxd4 {[%clk 0:01:29.6]} 36... Rc6 {[%clk 0:00:12.5]} 37. Rg4 {[%clk 0:01:20.6]}
37... h5 {[%clk 0:00:09.5]} 38. Rg5 {[%clk 0:01:18.4]} 38... h4 {[%clk
0:00:09.7]} 39. Rb8 {[%clk 0:01:12]} 39... Kh6 {[%clk 0:00:08.8]} 40. f4 {[%clk
0:01:11.2]} 40... e5 {[%clk 0:00:06.8]} 41. Rh8# {[%clk 0:01:11.6]} 1-0

[Event "Early-Titled-Tuesday-Blitz-April-16-2024"]
[Site "Chess.com"]
[Date "2024.04.16"]
[Round "8"]
[White "Sanyura"]
[Black "SaiAgni_98"]
[Result "1-0"]
[WhiteElo "2598"]
[BlackElo "2482"]
[TimeControl "180+1"]
[EndTime "9:30:45 PDT"]
[Termination "Sanyura won by resignation"]

1. e4 {[%clk 0:03:00.9]} 1... c6 {[%clk 0:02:55.8]} 2. d4 {[%clk 0:03:00.9]}
2... d5 {[%clk 0:02:55.8]} 3. Nc3 {[%clk 0:03:01.7]} 3... dxe4 {[%clk
0:02:55.6]} 4. Nxe4 {[%clk 0:03:02.6]} 4... Nf6 {[%clk 0:02:56.3]} 5. Nxf6+
{[%clk 0:03:02.6]} 5... exf6 {[%clk 0:02:57.2]} 6. c3 {[%clk 0:03:01.7]} 6...
Bd6 {[%clk 0:02:57.3]} 7. Bd3 {[%clk 0:03:02.3]} 7... O-O {[%clk 0:02:51.4]} 8.
Ne2 {[%clk 0:03:02.8]} 8... Re8 {[%clk 0:02:48.7]} 9. Qc2 {[%clk 0:03:03.4]}
9... h5 {[%clk 0:02:48.7]} 10. O-O {[%clk 0:03:03.1]} 10... h4 {[%clk
0:02:48.4]} 11. h3 {[%clk 0:03:02.8]} 11... Nd7 {[%clk 0:02:48.2]} 12. Be3
{[%clk 0:02:58.6]} 12... Nf8 {[%clk 0:02:48.4]} 13. Rad1 {[%clk 0:02:58.9]}
13... Bd7 {[%clk 0:02:45.1]} 14. c4 {[%clk 0:02:59.2]} 14... Rc8 {[%clk
0:02:44.8]} 15. Rfe1 {[%clk 0:02:58.8]} 15... Bb8 {[%clk 0:02:36.7]} 16. Qc1
{[%clk 0:02:45.8]} 16... g6 {[%clk 0:02:20.8]} 17. Bf4 {[%clk 0:02:41.8]} 17...
Bxf4 {[%clk 0:02:07.9]} 18. Qxf4 {[%clk 0:02:40.2]} 18... g5 {[%clk 0:01:59]}
19. Qf3 {[%clk 0:02:38.5]} 19... Ng6 {[%clk 0:01:54]} 20. Bxg6 {[%clk
0:02:33.9]} 20... fxg6 {[%clk 0:01:54.9]} 21. d5 {[%clk 0:02:34.8]} 21... c5
{[%clk 0:01:51.8]} 22. Nc3 {[%clk 0:02:31.4]} 22... Kg7 {[%clk 0:01:37.2]} 23.
d6 {[%clk 0:02:24.8]} 23... Bc6 {[%clk 0:01:29.5]} 24. Rxe8 {[%clk 0:02:24.2]}
24... Qxe8 {[%clk 0:01:28.8]} 25. d7 {[%clk 0:02:24.5]} 25... Bxd7 {[%clk
0:01:23.6]} 26. Qxb7 {[%clk 0:02:24.1]} 26... Rd8 {[%clk 0:01:22.5]} 27. Ne4
{[%clk 0:02:22.4]} 27... Kh6 {[%clk 0:01:08.4]} 28. Nxf6 {[%clk 0:02:22]} 28...
Qe2 {[%clk 0:01:06.9]} 29. Qd5 {[%clk 0:02:06.2]} 29... Ba4 {[%clk 0:00:53.3]}
30. Qxd8 {[%clk 0:01:51.9]} 30... Qxd1+ {[%clk 0:00:52.6]} 31. Qxd1 {[%clk
0:01:51.9]} 31... Bxd1 {[%clk 0:00:53.5]} 32. Ne4 {[%clk 0:01:52.2]} 32... Be2
{[%clk 0:00:40.7]} 33. b3 {[%clk 0:01:51.8]} 33... g4 {[%clk 0:00:36.4]} 34.
hxg4 {[%clk 0:01:51]} 34... Bxg4 {[%clk 0:00:37.3]} 35. f3 {[%clk 0:01:49.4]}
35... Bf5 {[%clk 0:00:32.9]} 36. Nxc5 {[%clk 0:01:50]} 36... Kg5 {[%clk
0:00:33.2]} 37. Kf2 {[%clk 0:01:49.7]} 37... Kf4 {[%clk 0:00:33.6]} 38. Nb7
{[%clk 0:01:13.3]} 38... Bb1 {[%clk 0:00:27.4]} 39. a3 {[%clk 0:01:13.2]} 39...
Ba2 {[%clk 0:00:25.3]} 40. Na5 {[%clk 0:01:12.8]} 40... g5 {[%clk 0:00:22.8]}
41. c5 {[%clk 0:01:13.1]} 41... Ke5 {[%clk 0:00:23.2]} 42. b4 {[%clk 0:01:12.4]}
42... Kd4 {[%clk 0:00:18.6]} 43. Nc6+ {[%clk 0:01:12.6]} 43... Kc3 {[%clk
0:00:17.4]} 44. Nxa7 {[%clk 0:01:13.5]} 44... Kb3 {[%clk 0:00:16.5]} 45. c6
{[%clk 0:01:14]} 45... Kxa3 {[%clk 0:00:16.9]} 46. c7 {[%clk 0:01:14.3]} 46...
Be6 {[%clk 0:00:17.7]} 47. b5 {[%clk 0:01:10]} 1-0

[Event "Early-Titled-Tuesday-Blitz-April-16-2024"]
[Site "Chess.com"]
[Date "2024.04.16"]
[Round "8"]
[White "Kildepiotr"]
[Black "dvglko"]
[Result "1-0"]
[WhiteElo "2705"]
[BlackElo "2492"]
[TimeControl "180+1"]
[EndTime "9:30:47 PDT"]
[Termination "Kildepiotr won by resignation"]

1. Nf3 {[%clk 0:02:35.9]} 1... c5 {[%clk 0:02:59.1]} 2. e4 {[%clk 0:02:35.6]}
2... d6 {[%clk 0:02:58.4]} 3. Bb5+ {[%clk 0:02:36.2]} 3... Nd7 {[%clk
0:02:57.5]} 4. c3 {[%clk 0:02:35.7]} 4... a6 {[%clk 0:02:57]} 5. Ba4 {[%clk
0:02:36.1]} 5... b5 {[%clk 0:02:52.8]} 6. Bc2 {[%clk 0:02:36.3]} 6... Bb7 {[%clk
0:02:51.9]} 7. O-O {[%clk 0:02:37]} 7... g6 {[%clk 0:02:46.1]} 8. d4 {[%clk
0:02:36.3]} 8... Bg7 {[%clk 0:02:42.7]} 9. d5 {[%clk 0:02:34.9]} 9... Ngf6
{[%clk 0:02:30.2]} 10. h3 {[%clk 0:02:35.2]} 10... O-O {[%clk 0:02:29.9]} 11.
Bf4 {[%clk 0:02:32.1]} 11... Ne8 {[%clk 0:02:14.5]} 12. Nbd2 {[%clk 0:02:30.3]}
12... Ne5 {[%clk 0:02:13.7]} 13. Nxe5 {[%clk 0:02:29.1]} 13... dxe5 {[%clk
0:02:14.6]} 14. Be3 {[%clk 0:02:29.2]} 14... Rc8 {[%clk 0:02:10.5]} 15. Nb3
{[%clk 0:02:28.5]} 15... Qd6 {[%clk 0:01:46.9]} 16. a4 {[%clk 0:02:24.1]} 16...
f5 {[%clk 0:01:31.5]} 17. f3 {[%clk 0:02:23.5]} 17... f4 {[%clk 0:01:29]} 18.
Bf2 {[%clk 0:02:23.7]} 18... c4 {[%clk 0:01:09.9]} 19. Na5 {[%clk 0:02:21.9]}
19... Ba8 {[%clk 0:01:09.5]} 20. Qd2 {[%clk 0:02:17.9]} 20... e6 {[%clk
0:00:58.9]} 21. axb5 {[%clk 0:02:10.1]} 21... axb5 {[%clk 0:00:57.6]} 22. Rfd1
{[%clk 0:02:04.3]} 22... exd5 {[%clk 0:00:54.9]} 23. exd5 {[%clk 0:02:03.8]}
23... Nf6 {[%clk 0:00:42.7]} 24. b4 {[%clk 0:01:53]} 24... Rfd8 {[%clk
0:00:23.2]} 25. Be4 {[%clk 0:01:46.5]} 25... Nxd5 {[%clk 0:00:18.3]} 26. Nxc4
{[%clk 0:01:26.6]} 26... bxc4 {[%clk 0:00:11.4]} 27. Rxa8 {[%clk 0:01:26.2]}
27... Rxa8 {[%clk 0:00:11.5]} 28. Bc5 {[%clk 0:01:01.9]} 28... Qe6 {[%clk
0:00:06]} 29. Bxd5 {[%clk 0:01:01.5]} 29... Rxd5 {[%clk 0:00:04.7]} 30. Qxd5
{[%clk 0:01:02.4]} 30... Qxd5 {[%clk 0:00:04.9]} 31. Rxd5 {[%clk 0:01:03.1]}
31... Ra3 {[%clk 0:00:05.5]} 32. Rd8+ {[%clk 0:00:53.9]} 32... Kf7 {[%clk
0:00:05]} 33. Rd7+ {[%clk 0:00:54.5]} 33... Kg8 {[%clk 0:00:04.6]} 34. b5 {[%clk
0:00:52.4]} 34... Rxc3 {[%clk 0:00:05]} 35. b6 {[%clk 0:00:52.6]} 35... Rb3
{[%clk 0:00:05.7]} 36. b7 {[%clk 0:00:53]} 36... c3 {[%clk 0:00:06.4]} 37. Rd8+
{[%clk 0:00:52.2]} 37... Kf7 {[%clk 0:00:06.7]} 38. b8=Q {[%clk 0:00:52.6]}
38... c2 {[%clk 0:00:05.9]} 39. Qxb3+ {[%clk 0:00:52.3]} 1-0